Cogmind - Beta 16 @@@ ROGUE MODE // 2026.01.08 @ 22:46:01 Player: Satori Result: Destroyed by H-61 Shepherd with Heavy Assault Cannon Performance ------------- Evolutions (3) 1500 Regions Visited (6) 1200 Robots Destroyed (135) 675 Value Destroyed (3738) 3738 Prototype IDs (29) 580 Alien Tech Used (0) 0 Bonus (133) 133 TOTAL SCORE: 7826 Bonus ------- High Alert Combat Kills 149 Aligned with FarCom 300 Friendly Fire -316 Cogmind --------- Core Integrity 0/700 Matter 279/300 Energy 150/150 System Corruption 18% Temperature Cool (0) Movement Hovering (126) Ox1 Location -7/Factory Parts ------- > --- POWER (1) -------- Micro Nuclear Core > --- PROPULSION (4) --- Improved Carbon-fiber Leg Gravmag System Gravmag System Xenon Bombardment Thruster > --- UTILITY (4) ------ Improved Heat Sink Advanced Visual Processing Unit Reaction Control System Improved Weapon Shielding > --- WEAPON (4) ------- Beam Rifle Power Maul Spear Spear > --- INVENTORY (5) ---- Cryofiber Web Sensor Drone Bay (20/20) Gauss Rifle Missile Launcher Remote Datajack Peak State ------------ > --- POWER ------------ Cooled Deuterium Engine > --- PROPULSION ------- Advanced Treads Advanced Treads Advanced Treads Medium Treads > --- UTILITY ---------- Improved Heat Sink High-capacity Storage Unit Modified TNC Improved Medium Armor Plating > --- WEAPON ----------- Enhanced Autogun Enhanced Autogun Gauss Rifle Gauss Rifle > --- INVENTORY -------- Reinforced Deuterium Engine Armored Huge Wheel Coolant Injector High-capacity Matter Pod Improved Terrain Scanner Heavy Armor Plating Hardened Light Armor Plating Improved Light Armor Plating Improved Medium Armor Plating Improved Shield Generator Hacking Suite Sensor Drone Bay Heavy EM Shotgun Heavy EM Shotgun Cooled Particle Cannon Enhanced Autogun Heavy Rocket Launcher Katana [Rating: 55] Favorites ----------- Power Light Ion Engine Engine Light Ion Engine Power Core Light Nuclear Core Propulsion Light Treads Treads Light Treads Leg Aluminum Leg Wheel Compact Wheel Hover Unit Gravmag System Flight Unit Xenon Bombardment Thruster Utility Large Storage Unit Device Seismic Detector Storage Large Storage Unit Processor Modified TNC Protection Hardened Light Armor Plating Weapon Gauss Rifle Energy Gun Heavy EM Shotgun Energy Cannon Cooled Particle Cannon Ballistic Gun Gauss Rifle Ballistic Cannon Gauss Cannon Launcher Rocket Launcher Special Weapon Remote Datajack Impact Weapon Power Maul Piercing Weapon Spear Build | -11 -10 -10 -10 -9 -8 -7 ------- Run | Yrd Mat Min Exi Min Mat Fac Slots Evolved 6 | . . . . . 4 2 Power . | . . . . . . . Propulsion 2 | . . . . . 2 . Utility 2 | . . . . . 1 1 Weapon 2 | . . . . . 1 1 Parts Attached 107 | 6 11 2 . 3 26 59 Power 9 | 1 . . . 1 3 4 Engine 5 | 1 . . . 1 . 3 Core 4 | . . . . . 3 1 Reactor . | . . . . . . . Propulsion 30 | 2 3 . . . 8 17 Treads 19 | 2 2 . . . 6 9 Leg 5 | . . . . . 2 3 Wheel 2 | . 1 . . . . 1 Hover 3 | . . . . . . 3 Flight 1 | . . . . . . 1 Utility 31 | 1 5 1 . . 7 17 Device 13 | . 2 1 . . 2 8 Storage 4 | 1 2 . . . 1 . Processor 2 | . . . . . . 2 Hackware . | . . . . . . . Protection 12 | . 1 . . . 4 7 Artifact . | . . . . . . . Weapon 37 | 2 3 1 . 2 8 21 Energy Gun 11 | 2 . . . . 3 6 Energy Cannon 1 | . . . . . . 1 Ballistic Gun 16 | . 3 . . 2 4 7 Ballistic Cannon 1 | . . . . . . 1 Launcher 4 | . . 1 . . 1 2 Special Weapon 1 | . . . . . . 1 Impact Weapon 1 | . . . . . . 1 Slashing Weapon . | . . . . . . . Piercing Weapon 2 | . . . . . . 2 Special Melee Weapon . | . . . . . . . Unidentified Prototypes 6 | . 1 1 . . 1 3 Parts Lost 31 | . 1 . . 2 6 22 Power 4 | . . . . 1 1 2 Propulsion 10 | . 1 . . . 2 7 Utility 7 | . . . . . 2 5 Weapon 10 | . . . . 1 1 8 Highest Loss Streak 7 | . 1 . . 1 2 7 To Critical Strikes 2 | . . . . . . 2 Average Backups 13 | 1 8 13 15 14 14 13 Power . | . 1 1 1 . . . Propulsion 1 | . 1 3 2 2 1 . Utility 6 | . 3 5 6 7 8 7 Weapon 4 | . 3 4 5 4 4 4 Tool/Special . | . . . . . . . Unused Backups 21 | . 1 . 1 . 3 16 Power 2 | . . . . . . 2 Propulsion 4 | . . . 1 . . 3 Utility 11 | . . . . . 3 8 Weapon 4 | . 1 . . . . 3 Tool/Special . | . . . . . . . Average Slot Usage (%) 93 | . 97 100 100 100 98 84 Engine 7 | . 14 14 14 14 1 4 Core 2 | . . . . . 7 . Treads 25 | . 20 28 28 28 32 19 Leg 1 | . . . . . 3 . Device 10 | . 11 13 14 14 11 7 Storage 9 | . 14 14 14 14 9 5 Processor 2 | . . . . . . 6 Protection 4 | . 2 . . . 6 5 Energy Gun 5 | . 20 . . . . 7 Ballistic Gun 19 | . 7 27 28 24 25 13 Peak Build Rating 55 | 6 12 20 14 14 36 55 Average Rating 27 | 4 8 13 14 12 28 42 On Entrance 13 | . 6 12 14 14 13 36 Avg Prop Armor Cover (%) 9 | . 3 . . . 3 14 Naked Turns 35 | . . . . . . 35 Heaviest Build 80 | 12 32 32 30 31 62 80 Greatest Support 98 | 40 40 40 40 40 84 98 Greatest Overweight (x) 4 | 1 4 . . . . 3 Average Overweight (x) . | . . . . . . . Largest Inventory Capacity 20 | 8 15 15 15 15 20 20 Average Capacity 15 | 7 10 15 15 15 15 16 Most Carried 20 | 3 12 15 15 15 20 20 Average Carried 13 | 1 8 13 15 14 14 14 Final Capacity 20 | 8 15 15 15 15 20 5 Final Carried 20 | 3 12 15 15 15 20 5 Class Distribution -------------------- 43% | Mutant 31% | Scavenger-Skirmisher 21% | Skirmisher Dominant Class ---------------- Mutant | -10/Materials Mutant | -10/Mines Mutant | -10/Exiles Mutant | -9/Mines Scavenger-Skirmisher | -8/Materials Scavenger-Skirmisher | -7/Factory Resources | -11 -10 -10 -10 -9 -8 -7 ----------- Run | Yrd Mat Min Exi Min Mat Fac Matter Collected 3667 | 256 73 158 . 288 1197 1695 Remotely . | . . . . . . . Salvage Created 4880 | 29 239 91 . 303 1659 2559 Parts 292 | 2 19 12 . 18 109 132 Haulers Intercepted 8 | . . . . . 6 2 Recyclers Shooed 10 | . . . . . 3 7 Parts Field Recycled . | . . . . . . . Retrieved Matter . | . . . . . . . Parts Self-Destructed . | . . . . . . . Prevented . | . . . . . . . Parts Restored . | . . . . . . . Kills | -11 -10 -10 -10 -9 -8 -7 ------- Run | Yrd Mat Min Exi Min Mat Fac Combat Hostiles Destroyed 104 | . 12 5 . 25 24 38 Guns 58 | . 11 2 . 5 20 20 Cannons 4 | . . . . . . 4 AOE 38 | . . 3 . 20 3 12 Classes Destroyed 18 | 1 2 . . 3 6 6 Worker 15 | . . . . 1 7 7 Builder 5 | . . . . . 2 3 Tunneler 3 | 1 . . . 1 1 . Hauler 8 | . . . . . 6 2 Recycler 8 | . . . . . 1 7 Mechanic 2 | . . . . . . 2 Operator 2 | . . . . . 2 . Watcher 3 | . . . . . 3 . Swarmer 24 | . 9 3 . 6 6 . Grunt 37 | . 3 2 . 2 12 18 Brawler 1 | . . . . . . 1 Duelist 1 | . . . . . . 1 Protector 1 | . . . . . . 1 Sentry 10 | . . . . . 6 4 Specialist 2 | . . . . . . 2 Hunter 4 | . . . . . . 4 Programmer 7 | . . . . . . 7 Assembled 17 | . . . . 17 . . Thug 1 | . . . . 1 . . Guerrilla 1 | . . . . 1 . . Best Kill Streak 21 | 1 5 3 . 20 9 21 Combat Bots Only 19 | . 5 3 . 19 6 7 Max Kills in Single Turn 6 | 1 1 2 . 4 5 6 Gunslinging . | . . . . . . . Exploded 4 | . . 2 . 4 3 4 Melee . | . . . . . . . Uniques/NPCs Destroyed . | . . . . . . . Combat | -11 -10 -10 -10 -9 -8 -7 -------- Run | Yrd Mat Min Exi Min Mat Fac Hostile Shots Fired 752 | . 41 14 . 34 128 535 Missed 269 | . 8 3 . 13 41 204 Hits 483 | . 33 11 . 21 87 331 Melee 12 | . . . . . . 12 Projectile 471 | . 33 11 . 21 87 319 Critical Strikes 21 | . . . . 1 1 19 Actively Blocked 1 | . . . . . . 1 Part Disruptions 3 | . . . . . . 3 Damage Taken 7129 | . 292 140 . 345 1229 5123 Core 923 | . 77 10 . 67 57 712 Absorbed by Shields 35 | . . . . . . 35 Redirected to Shielding 45 | . . . . . . 45 Core Remaining (%) 75 | 100 . . . 38 89 . Volleys Fired 240 | 1 28 8 . 22 81 100 Largest 4 | 2 2 2 . 2 3 4 Hottest 200 | 100 100 46 . 46 165 200 Shots Fired 656 | 2 56 14 . 31 238 315 Gun 594 | 2 56 12 . 18 237 269 Cannon 40 | . . . . . . 40 Launcher 22 | . . 2 . 13 1 6 Special . | . . . . . . . Kinetic 440 | . 2 12 . 18 231 177 Thermal 87 | 2 54 . . . . 31 Explosive 22 | . . 2 . 13 1 6 Electromagnetic 107 | . . . . . 6 101 Robot Hit Streak 16 | 2 12 8 . 7 16 9 Robot Miss Streak 5 | . 5 1 . 2 5 5 Penetration Max 1 | . . . . . 1 1 Secondary Targets 11 | . 2 1 . 1 2 5 Max Gunslinging Chain 1 | . 1 1 . 1 1 1 Shots Hit Robots 423 | 2 29 9 . 17 157 209 Core Hits 274 | 1 12 8 . 45 73 135 Critical Kills . | . . . . . . . Critical Parts Destroyed . | . . . . . . . Critical Strikes 3 | . 1 . . . . 2 Burn 1 | . 1 . . . . . Destroy 1 | . . . . . . 1 Blast 1 | . . . . . . 1 Melee Attacks 2 | . . . . . . 2 Impact 2 | . . . . . . 2 Slashing . | . . . . . . . Piercing . | . . . . . . . Sneak Attacks . | . . . . . . . Combat Hostiles . | . . . . . . . Follow-up Attacks . | . . . . . . . Damage Inflicted 12824 | 26 392 354 . 1796 3321 6935 Guns 7444 | 26 392 143 . 223 2948 3712 Cannons 775 | . . . . . . 775 Explosions 4415 | . . 203 . 1559 321 2332 Melee . | . . . . . . . Ramming 190 | . . 8 . 14 52 116 Kinetic 5619 | . 17 143 . 223 2823 2413 Thermal 1273 | 26 375 . . . . 872 Explosive 4161 | . . 203 . 1559 321 2078 Electromagnetic 1581 | . . . . . 125 1456 Impact . | . . . . . . . Slashing . | . . . . . . . Piercing . | . . . . . . . Highest Corruption 18 | . . . . . . 18 Average Corruption 13 | . . . . . . 13 Corruption Purged 4 | . . . . . . 4 Corruption Blocked . | . . . . . . . Effects 89 | . . . . . . 89 Message Errors 14 | . . . . . . 14 Matter Fused 21 | . . . . . . 21 Heat Flow Errors 10 | . . . . . . 10 Energy Discharges 16 | . . . . . . 16 Parts Fused 1 | . . . . . . 1 Data Loss (minor) 10 | . . . . . . 10 Data Loss (major) 2 | . . . . . . 2 Misfires 3 | . . . . . . 3 Alerts 1 | . . . . . . 1 Misdirections 2 | . . . . . . 2 Weapon Failures 9 | . . . . . . 9 Overload Shots 8 | . . . . . . 8 Overflow Damage 254 | . . 15 . 111 20 108 Projectiles 19 | . . . . . . 19 Explosions 235 | . . 15 . 111 20 89 Melee . | . . . . . . . Knockbacks 6 | . . 1 . . . 5 Impact 3 | . . 1 . . . 2 Kinetic 3 | . . . . . . 3 Secondary . | . . . . . . . Self-Inflicted Damage 528 | . . . . 88 13 427 Shots 12 | . . . . 3 1 8 Rammed 24 | . . 2 . 2 10 10 Targets Rammed 28 | . . 2 . 2 12 12 Kicked . | . . . . . . . Crushed 4 | . . . . . 2 2 Highest Temperature 414 | 39 414 28 . 52 260 279 Average Temperature 78 | 20 95 17 . 18 96 79 Received Heat Transfer 1803 | . 78 75 . 134 513 1003 Effects 4 | . 1 . . . 3 . Shutdowns 1 | . 1 . . . . . Interference 3 | . . . . . 3 . Siege Activations . | . . . . . . . Martial Activations . | . . . . . . . Shielding Activations . | . . . . . . . Robots Disrupted . | . . . . . . . Combat Hostiles . | . . . . . . . Robots Corrupted 3 | . . . . . 1 2 Combat Hostiles 3 | . . . . . 1 2 Parts Fried 9 | . . . . . 1 8 Impact Corruptions . | . . . . . . . Robots Melted 1 | . 1 . . . . . Combat Hostiles 1 | . 1 . . . . . Parts Melted 4 | 1 3 . . . . . Heat Transferred 2400 | 74 1184 . . . . 1142 Parts Sabotaged . | . . . . . . . Parts Stolen . | . . . . . . . Parts Stripped . | . . . . . . . Power Chain Reactions 4 | . . . . . . 4 Alert | -11 -10 -10 -10 -9 -8 -7 ------- Run | Yrd Mat Min Exi Min Mat Fac Maximum Alert Level 3 | . . . . . 1 3 Low Security (%) 73 | 100 100 100 . 100 63 55 Level 1 13 | . . . . . 36 8 Level 2 4 | . . . . . . 13 Level 3 8 | . . . . . . 23 Level 4 . | . . . . . . . Level 5 . | . . . . . . . High Security . | . . . . . . . Max Security . | . . . . . . . Peak Influence 995 | 5 150 98 . 116 386 995 Initial 168 | . . . . . 2 168 Average 194 | . 42 9 . 52 171 367 Influence Increases 3343 | 5 295 148 . 288 919 1688 Destroy 0b10 Robot/C 1720 | . 240 100 . 160 480 740 Destroy 0b10 Robot/NC 235 | 5 . . . 10 110 110 Destroy Leader 412 | . 40 20 . 20 148 184 Allied During Kill 9 | . . . . 9 . . Successful Hack 95 | . 12 . . . 21 62 Select Force Hacks 50 | . . . . . . 50 Disable Machine 210 | . . 15 . 15 90 90 Destroy Structure 162 | . 3 13 . 59 10 77 Lose Combat Pursuer 450 | . . . . 15 60 375 Influence Decreases 2353 | 5 295 68 80 280 557 1068 Entered New Map 288 | . . . 80 . 6 202 Time Decay 1765 | 5 285 68 . 260 491 656 Lost Part 300 | . 10 . . 20 60 210 Squads Dispatched 24 | . 2 . . 1 3 18 Investigation 5 | . . . . . 1 4 Extermination 7 | . . . . . . 7 Reinforcement 11 | . 2 . . 1 2 6 Assault . | . . . . . . . Garrison 1 | . . . . . . 1 Intercept . | . . . . . . . Searches Triggered . | . . . . . . . Construction Impeded 3 | . . . . 1 . 2 Haulers Reinforced . | . . . . . . . Active Scanning Responses . | . . . . . . . Cargo Convoy Interrupts 1 | . . . . . . 1 Stealth | -11 -10 -10 -10 -9 -8 -7 --------- Run | Yrd Mat Min Exi Min Mat Fac Distress Signals 16 | . 3 . . . 7 6 Communications Jammed . | . . . . . . . Distress Signals . | . . . . . . . Times Spotted 180 | . 19 5 . 24 47 85 Peak Tracking Total 12 | . 4 3 . 7 6 12 Tactical Retreats 16 | . . . . 1 4 11 Traps | -11 -10 -10 -10 -9 -8 -7 ------- Run | Yrd Mat Min Exi Min Mat Fac Traps Triggered 6 | . 2 . . . 1 3 Indirectly . | . . . . . . . Trap Hack Attempts . | . . . . . . . Triggered . | . . . . . . . Disarmed . | . . . . . . . Reprogrammed 2 | . 2 . . . . . Reused . | . . . . . . . Traps Extracted . | . . . . . . . Installed . | . . . . . . . Triggered . | . . . . . . . Machines | -11 -10 -10 -10 -9 -8 -7 ---------- Run | Yrd Mat Min Exi Min Mat Fac Machines Disabled 14 | . . 1 . 1 6 6 Max in Single Turn 3 | . . 1 . . 1 3 Machines Repaired . | . . . . . . . Machines Dismantled . | . . . . . . . Machines Sabotaged . | . . . . . . . Overloaded Fab Kills 2 | . . . . . . 2 Hacking | -11 -10 -10 -10 -9 -8 -7 --------- Run | Yrd Mat Min Exi Min Mat Fac Machines Accessed 27 | . 4 1 1 . 6 15 Terminals 14 | . 4 . . . 4 6 Fabricators 3 | . . . . . . 3 Repair Stations 4 | . . . . . 1 3 Recycling Units 2 | . . . . . 1 1 Scanalyzers 1 | . . . . . . 1 Garrison Access 1 | . . . . . . 1 Total Hacks 57 | . 12 1 1 . 9 34 Successful 25 | . 5 1 1 . 6 12 Failed 32 | . 7 . . . 3 22 Catastrophic 9 | . 2 . . . . 7 Database Lockouts . | . . . . . . . Manual 12 | . 4 . 1 . 3 4 Terminals 27 | . 12 . . . 5 10 Fabricators 5 | . . . . . . 5 Repair Stations 11 | . . . . . 3 8 Recycling Units 2 | . . . . . 1 1 Scanalyzers 6 | . . . . . . 6 Garrison Access 4 | . . . . . . 4 Terminal Hacks 13 | . 5 1 1 . 2 4 Open Door 1 | . . 1 . . . . Branch Access Points 1 | . 1 . . . . . Emergency Access Points 1 | . . . . . . 1 Alert Level 1 | . . . . . . 1 Locate Traps 3 | . 2 . . . . 1 Reprogram Traps 1 | . 1 . . . . . Patrol Status 1 | . . . . . . 1 Transport Status 1 | . 1 . . . . . Registered Components 1 | . . . . . 1 . Zone Layout 1 | . . . . . 1 . Proto ID Catalog 1 | . . . 1 . . . Fabricator Hacks 1 | . . . . . . 1 Load Schematic 1 | . . . . . . 1 Repair Station Hacks 1 | . . . . . 1 . Scan Component 1 | . . . . . 1 . Recycling Unit Hacks 1 | . . . . . 1 . Retrieve Components 1 | . . . . . 1 . Scanalyzer 4 | . . . . . . 4 Insert Component 1 | . . . . . . 1 Analyze 1 | . . . . . . 1 Retrieve Study 2 | . . . . . . 2 Garrison Access Hacks 1 | . . . . . . 1 Unlock Access 1 | . . . . . . 1 Unauthorized Hacks 4 | . . . . . 2 2 Terminals 3 | . . . . . 2 1 Track 1 | . . . . . . 1 Skim 2 | . . . . . 2 . Fabricators 1 | . . . . . . 1 Overload 1 | . . . . . . 1 Repair Stations . | . . . . . . . Recycling Units . | . . . . . . . Scanalyzers . | . . . . . . . Garrison Access . | . . . . . . . Data Cores Recovered . | . . . . . . . Used . | . . . . . . . Hacking Detections 20 | . 3 . . . 3 14 Full Trace Events 2 | . . . . . . 2 Feedback Events . | . . . . . . . Feedback Blocked . | . . . . . . . Robot Schematics Acquired . | . . . . . . . Robots Built . | . . . . . . . Authchips . | . . . . . . . Time . | . . . . . . . Total Robot Build Rating . | . . . . . . . Part Schematics Acquired 1 | . . . . . . 1 Parts Built . | . . . . . . . Authchips . | . . . . . . . Time . | . . . . . . . Total Part Build Rating . | . . . . . . . Part Studies Acquired 2 | . . . . . . 2 Parts Repaired . | . . . . . . . Time . | . . . . . . . Parts Recycled . | . . . . . . . Recycled Matter . | . . . . . . . Retrieved Matter . | . . . . . . . Retrieved Components 10 | . . . . . 10 . Parts Scanalyzed 1 | . . . . . . 1 Part Schematics Acquired 1 | . . . . . . 1 Parts Damaged . | . . . . . . . Bothacking | -11 -10 -10 -10 -9 -8 -7 ------------ Run | Yrd Mat Min Exi Min Mat Fac Used RIF Installer . | . . . . . . . Robots Hacked . | . . . . . . . Non-combat . | . . . . . . . Combat . | . . . . . . . Robot Hacks Applied . | . . . . . . . Relay Couplers Released . | . . . . . . . Fabnet Peak Effective % . | . . . . . . . Robots Rewired . | . . . . . . . Allies Hacked . | . . . . . . . Hacks Repelled . | . . . . . . . Allies | -11 -10 -10 -10 -9 -8 -7 -------- Run | Yrd Mat Min Exi Min Mat Fac Total Allies 2 | . . . . 2 . . Largest Group 2 | . . . . 2 . . Highest-Rated Group 55 | . . . . 55 . . Highest-Rated Ally 31 | . . . . 31 . . Total Orders . | . . . . . . . Ally Attacks 1 | . . . . 1 . . Total Damage . | . . . . . . . Kills . | . . . . . . . Allies Corrupted . | . . . . . . . Allies Melted . | . . . . . . . Intel | -11 -10 -10 -10 -9 -8 -7 ------- Run | Yrd Mat Min Exi Min Mat Fac Active Infowar (turns) 5554 | . 599 866 351 596 722 2420 Optics 379 | . . . . . . 379 Seismic 3134 | . 599 866 351 596 722 . T.N.C. 2041 | . . . . . . 2041 Robot Analysis Total . | . . . . . . . Derelict Logs Recovered 2 | . . 2 . . . . Drone Launches . | . . . . . . . Drone Recoveries . | . . . . . . . Exploration | -11 -10 -10 -10 -9 -8 -7 ------------- Run | Yrd Mat Min Exi Min Mat Fac Turns Passed 7696 | 91 905 903 351 596 2205 2645 Spaces Moved 4563 | 51 459 537 219 334 1198 1765 Core 325 | 5 1 . . . . 319 Treads 3550 | 46 390 537 219 334 1198 826 Legs 2 | . . . . . . 2 Wheels 260 | . 68 . . . . 192 Hover 208 | . . . . . . 208 Flight 218 | . . . . . . 218 Fastest Speed 40 | 50 100 160 160 160 145 40 Average Speed 139 | 150 152 160 160 160 151 114 Slowest Speed 265 | 160 250 160 160 160 160 265 Overloaded Moves . | . . . . . . . Propulsion Burnouts . | . . . . . . . Robots Hopped . | . . . . . . . Potential Cave-ins . | . . . . . . . Cave-ins Triggered . | . . . . . . . Exploration Rate (%) 59 | 4 83 95 60 68 64 41 Regions Visited 6 Branch Regions 3 Pre-discovered Areas . | . . . . . . . Known Exits Taken 1 | . 1 . . . . . Unknown Exits Taken 5 | 1 . 1 1 1 1 . Scrap Searched 4 | . . 1 . 3 . . Spaces Dug 44 | . . 7 . 36 . 1 Terrain Destroyed 191 | . . 15 . 84 9 83 Melee 1 | . . . . . . 1 Projectile 16 | . . . . . 2 14 AOE 174 | . . 15 . 84 7 68 Terrain Rammed . | . . . . . . . Walls Destroyed . | . . . . . . . Machines Disabled . | . . . . . . . Actions | -11 -10 -10 -10 -9 -8 -7 --------- Run | Yrd Mat Min Exi Min Mat Fac Total 5427 | 61 608 563 220 364 1431 2180 Wait 300 | . 85 6 . . 61 148 Move 4557 | 50 458 536 218 333 1197 1765 Hop . | . . . . . . . Pick Up 75 | 4 15 4 1 2 20 29 Fast Attach 45 | 5 5 . . . 10 25 Attach 41 | 1 4 . . 2 7 27 Detach 9 | . . . . . 3 6 Swap 66 | . 6 6 . 3 16 35 Drop 64 | . 7 1 1 . 24 31 Fire 240 | 1 28 8 . 22 81 100 Melee 2 | . . . . . . 2 Ram 4 | . . . . . . 4 Kick . | . . . . . . . Crush 24 | . . 2 . 2 12 8 Escape Stasis . | . . . . . . . Rewire . | . . . . . . . Trap . | . . . . . . . Miscellaneous . | . . . . . . . Route ------- -11/Scrapyard -10/Materials (discovered 5 exits: [*Mat x3] / *Min x2) -10/Mines (discovered 4 exits: [*Mat x2] / *Exi / [*Sub]) -10/Exiles -9/Mines -8/Materials (discovered 2 exits: *Fac x2) -7/Factory (discovered 3 exits: Sto / [*Low] / Gar) History --------- Turn | Location | Event 58 | -11/Scrapyard | Discovered new exit (range 12) 92 | -11/Scrapyard | Entered Materials 139 | -10/Materials | Identified exit to Mines 335 | -10/Materials | Build established: Mutant 579 | -10/Materials | Discovered new exit (range 15) 721 | -10/Materials | Discovered new exit (range 16) 877 | -10/Materials | Discovered new exit (range 16) 997 | -10/Materials | Entered Mines 1221 | -10/Mines | Found the Drone Emporium 1234 | -10/Mines | Found Prototype Device 1235 | -10/Mines | Identified Sensor Drone Bay 1319 | -10/Mines | Discovered new exit (range 6) 1583 | -10/Mines | Learned Materials emergency access door positions 1641 | -10/Mines | Discovered new exit (range 6) 1763 | -10/Mines | Received a Rocket Launcher from a helpful Derelict 1838 | -10/Mines | Discovered new exit (range 12) 1892 | -10/Mines | Deemed a non-threat by the Exiles lab entrance 1893 | -10/Mines | Discovered new exit (range 5) 1900 | -10/Mines | Entered Exiles 1940 | -10/Exiles | Met 8R-AWN 1968 | -10/Exiles | Met EX-HEX 2011 | -10/Exiles | Met EX-BIN 2030 | -10/Exiles | Aligned with FarCom system 2032 | -10/Exiles | Given EX-Vault access code 2070 | -10/Exiles | Opened EX-Vault 2083 | -10/Exiles | Found Modified TNC 2116 | -10/Exiles | Warned to stay clear of 0b10 Research branches 2137 | -10/Exiles | Exiles lab attacked by MAIN.C 2238 | -10/Exiles | Discovered new exit (range 10) 2251 | -10/Exiles | Left Exiles lab with Modified TNC 2251 | -10/Exiles | Entered Mines 2252 | -9/Mines | Assembled infested the area 2257 | -9/Mines | Assisted by a Guerilla fighting off Assembled 2334 | -9/Mines | Destroyed 19 combat bots 2481 | -9/Mines | Core integrity fell below 50% 2836 | -9/Mines | Discovered new exit (range 8) 2847 | -9/Mines | Entered Materials 2847 | -8/Materials | Evolved 4 slots: Propulsion x2, Utility x1, Weapon x1 3249 | -8/Materials | Build established: Skirmisher 3928 | -8/Materials | Build established: Scavenger-Skirmisher 4498 | -8/Materials | Discovered new exit (range 11) 4815 | -8/Materials | Discovered new exit (range 3) 5052 | -8/Materials | Entered Factory 5052 | -7/Factory | Evolved 2 slots: Utility x1, Weapon x1 5053 | -7/Factory | Identified exit to Storage 5721 | -7/Factory | Identified exit to Garrison 5868 | -7/Factory | System corruption reached 10% 6083 | -7/Factory | Discovered new exit (range 15) 6530 | -7/Factory | Build established: Skirmisher 6649 | -7/Factory | Cargo convoy interrupted 6671 | -7/Factory | Core integrity fell below 50% 6716 | -7/Factory | Destroyed 7 combat bots 6719 | -7/Factory | Lost 7 parts (1n2u4w) 6762 | -7/Factory | Lost 3 parts (2n1w) 7046 | -7/Factory | Garrison activated, responded to threat 7059 | -7/Factory | Core integrity fell below 20% 7093 | -7/Factory | Lost 4 parts (1p1n1u1w) 7093 | -7/Factory | Released all parts (9) 7386 | -7/Factory | Build established: Mutant 7697 | -7/Factory | Destroyed by H-61 Shepherd with Heavy Assault Cannon Last Messages --------------- 07532_ System corrupted: Energy discharge (-42). 07536_ Acquired Spear. 07550_ System corrupted: Component data lost. 07552_ Acquired 40 matter. 07558_ ALERT: Potential suspicious activity detected, Programmers report to Factory Zone 6D. 07570_ Acquired Power Maul. 07587_ XN6WRB2%>8PLTDNF8YD1,MKLPVATJIS 07617_ System corrupted: Energy discharge (-46). [Achievement: That Tickles] 07628_ Acquired 5 matter. 07649_ System corrupted: Matter fused (-8). 07668_ W-25 Informer sends out distress signal. 07670_ System corrupted: Matter fused (-8). 07675_ Slug penetrates Wall. 07691_ System corrupted: Energy discharge (-33). 07695_ ALERT: Suspicious intruders detected, dispatching Specialist reinforcements to area. 07697_ Penetrated by Slug. Map ----- +----------------------------------------------------+ | "" # #= ! * #??????????????????????? | | "" " + ###/##########???????>???????????? | | "" # [= +???????????????????? | | "" ! # *! #???????????????????? | | " !# ##+#???????????????????? | | ## #??????????????????????? | | """" ## #??????????????????????? | | """" ## """ " " +??????????????????????? | | """" ## """ "Y" ### #??????????????????????? | | """" + """ """ #??t#??????????????????????? | | ! ##! #?? #??????????????????????? | | ########## #??t???????????????????????? | | ?????????## T#### #?? ???????????????????????? | | ??????????####??# #?? ???????????????????????? | | ????????????????# #?? ???????????????????????? | | ????????????????# #?# #??????????????????????? | | ????????????????# #?#p#??????????????????????? | | ????????????????# #?#/###########????????????? | | ??????????????### ### #????????????? | | ??????????????# # #????????????? | | ??????????????# # / #????????????? | | ??????????????# ! # = #????????????? | | ??????????????# # #????????????? | | ??????????????# H + % #????????????? | | ??????????????# # #????????????? | | ??????????????# /@ ############## | | ??????????????# # # / ! | | ??????????????# # ; | | ??????????????## ## # | | ???????????????# ## # | | ???????????????# ## # | | ???????????????# ############## ! % | | ???????????????# #????????????# | | ???????????????# #????????????# | | ???????????????# ################### ####### | | ???????????????# | | ???????????????# ######## ###### #### | | ???????????????####### ## # #????# #??# " | | ?????????????????????# ## ! # #????#+#### | | ?????????????????????# ## # #????# # | | ?????????????????????# ## # #????# ### | | ?????????????????????# ##+##+## ###### **!# | | ?????????????????????# ###### # **!# | | ?????????????????????#### #????# + **!# | | ????????????????????????# #????# # # | | ????????????????????????# #????# # # / | | ????????????????????????# ###### # ! # / | | ????????????????????????# # ### | | ????????????????????????# ######?? | | ????????????????????????# #??????? | +----------------------------------------------------+ Best States ------------- Heat Dissipation 53 Coolant Potential 65 Energy Generation 18 Energy Capacity 310 Matter Stores 300 Matter Capacity 300 Sight Range 20 Terrain Scan Density 10 Armor Coverage 225 Weapon Shielding 66 Evasion (%) 68 Recoil Reduction 4 Item Schematics ----------------- Hacking Suite | -7/Factory | Scanalyzed Robot Schematics ------------------ None Fabricated ------------ Nothing Repaired ---------- Nothing Studied --------- Adv. Treads | -7/Factory | Hacked Imp. Deuterium Engine | -7/Factory | Hacked Alien Tech Used ----------------- None Achievements -------------- Hydra Insider Info Item+ Jackpot Live, Flee, And Rebuild Sixth Sense That Tickles Challenges ------------ None Game ------ Seed RocketDamperSlamshotty Manual? 0 Play Time 01:29:27 Cumulative 321.2 hours Start 2026.01.08 @ 21:16:54 End 2026.01.08 @ 22:46:01 Sessions 1 Manual Loads 0 Difficulty Rogue Special Mode None Game No. 112 Rogue 111 Adventurer 1 Explorer 0 Win Type - Total 10 Types 9/0/1/0/0/0/0/0/0/0 Lore% 75 Gallery% 73 Achievement% 43 Wizard Run 0 Options --------- Layout 2 ASCII 1 Keyboard 0 Movement Mouse Keybinds 0 Fullscreen 1 Font 16/TerminusCaps Map View 50x49 Zoom Use 0% Tactical HUD 1 Map Filters NONE Filters NONE Steam SD RUN: d683fd9e-5cad-4b84-9268-75e95e2eada3